bitfinex/quotes_SOLUSD_20251212
["timestamp","ask_amount","ask_price","bid_price","bid_amount"]
[1765511280707,5.13950843,137.17,137.12,8.80994492]
[1765511280933,5.13950843,137.16,137.11,8.80994492]
[1765511281229,5.13950843,137.16,137.11,16.78994492]
[1765511281531,18.18659963,137.15,137.11,16.78994492]
[1765511281831,7.29181857,137.14,137.11,16.78994492]
[1765511282037,7.97181857,137.14,137.11,16.78994492]
[1765511282228,0.68,137.13,137.11,16.78994492]
[1765511283013,7.97253169,137.13,137.11,16.78994492]
[1765511283206,7.97253169,137.13,137.09,0.2]
[1765511283424,0.68,137.12,137.09,16.98994492]
[1765511284029,0.68,137.12,137.09,27.14465625]
[1765511284635,7.29253169,137.13,137.09,27.14465625]
[1765511284931,7.97196633,137.14,137.11,8.80994492]
[1765511289212,7.97196633,137.14,137.11,11.67025193]
[1765511289421,0.68,137.14,137.11,11.67025193]
[1765511290142,7.97090494,137.16,137.11,18.96363352]
[1765511290346,0.68,137.15,137.11,11.67025193]
[1765511290719,0.68,137.15,137.11,8.80994492]
[1765511291050,10.83205795,137.15,137.11,8.80994492]
[1765511291542,0.68,137.14,137.11,8.80994492]
[1765511292546,3.54030701,137.14,137.11,8.80994492]
[1765511292746,0.68,137.14,137.11,8.80994492]
[1765511292931,0.7,137.13,137.11,8.80994492]
[1765511296462,2.86030701,137.16,137.13,8.80994492]
[1765511296463,0.7,137.16,137.13,8.80994492]
[1765511296965,0.7,137.16,137.13,2.86030701]
[1765511297140,7.99077132,137.16,137.13,11.67025193]
[1765511297337,7.99077132,137.16,137.13,8.80994492]
[1765511297538,7.29077132,137.16,137.13,8.80994492]
[1765511297848,0.7,137.15,137.13,11.67025193]
[1765511298172,7.99032899,137.17,137.14,8.80994492]
[1765511298358,7.29032899,137.17,137.14,8.80994492]
[1765511298563,0.7,137.16,137.14,8.80994492]
[1765511299145,7.29032899,137.17,137.14,8.80994492]
[1765511299344,7.99032899,137.17,137.14,8.80994492]
[1765511299654,7.99032899,137.17,137.14,11.67025193]
[1765511300161,7.29032899,137.17,137.14,8.80994492]
[1765511300363,0.7,137.16,137.14,11.67025193]
[1765511300972,0.7,137.16,137.14,8.80994492]
[1765511302378,7.29032899,137.17,137.14,8.80994492]
[1765511302685,0.7,137.2,137.17,8.80994492]
[1765511302984,7.28809853,137.21,137.17,2.86030701]
[1765511303143,0.7,137.19,137.17,2.86030701]
[1765511303742,7.98926491,137.19,137.17,8.80994492]
[1765511303972,7.98926491,137.19,137.16,8.80994492]
[1765511304175,0.7,137.18,137.16,8.80994492]
[1765511309506,7.28931623,137.19,137.16,11.67025193]
[1765511309685,7.98931623,137.19,137.16,11.67025193]
[1765511309877,21.08147595,137.21,137.16,18.96098286]
[1765511309878,7.28870894,137.2,137.16,18.96098286]
[1765511310097,0.7,137.19,137.17,2.86030701]
[1765511313311,0.7,137.2,137.17,2.86030701]
[1765511313674,7.28809853,137.21,137.18,2.86030701]
[1765511313970,0.7,137.21,137.19,8.80994492]
[1765511320325,7.98812888,137.21,137.19,8.80994492]
[1765511320502,0.7,137.21,137.19,8.80994492]
[1765511320701,0.7,137.2,137.19,8.80994492]
[1765511320903,7.9875674,137.22,137.19,8.80994492]
[1765511321213,0.7,137.21,137.19,8.80994492]
[1765511322419,7.98810498,137.21,137.19,8.80994492]
[1765511322811,7.95810498,137.21,137.19,8.80994492]
[1765511324241,7.2875674,137.22,137.19,8.80994492]
[1765511324422,0.67,137.21,137.18,7.98]
[1765511324624,0.67,137.21,137.17,8.80994492]
[1765511324927,0.67,137.21,137.17,18.96043187]
[1765511326742,7.95816658,137.21,137.17,18.96043187]
[1765511327611,0.67,137.2,137.17,18.96043187]
[1765511333039,0.67,137.21,137.2,8.80994492]
[1765511334231,3.53030701,137.21,137.18,7.98]
[1765511334542,10.81840554,137.21,137.17,8.80994492]
[1765511334848,0.67,137.2,137.17,8.80994492]
[1765511336750,7.95874064,137.2,137.17,8.80994492]
[1765511336961,0.67,137.19,137.17,8.80994492]
[1765511344244,0.67,137.19,137.17,13.27388655]
[1765511344558,7.28874064,137.2,137.17,13.27388655]
[1765511344559,7.95874064,137.2,137.17,13.27388655]
[1765511345441,7.28809853,137.21,137.17,13.27388655]
[1765511345742,0.67,137.19,137.17,13.27388655]
[1765511346452,7.28809853,137.21,137.17,13.27388655]
[1765511346658,0.67,137.2,137.17,13.27388655]
[1765511348147,7.95878649,137.2,137.17,13.27388655]
[1765511348726,0.67,137.19,137.17,13.27388655]
[1765511349951,7.95929143,137.19,137.17,8.80994492]
[1765511350445,0.67,137.18,137.17,8.80994492]
[1765511351747,0.67,137.2,137.17,13.27388655]
[1765511351951,18.21986544,137.22,137.17,13.27388655]
[1765511351952,0.67,137.21,137.17,13.27388655]
[1765511352161,7.95828343,137.21,137.17,20.56407417]
[1765511352353,0.67,137.23,137.19,8.80994492]
[1765511352543,0.67,137.22,137.19,13.27388655]
[1765511354367,7.95758231,137.22,137.19,8.80994492]
[1765511354769,0.72,137.21,137.19,8.80994492]
[1765511358358,0.72,137.21,137.19,13.27388655]
[1765511360510,0.72,137.21,137.19,8.80994492]
[1765511360699,8.00826028,137.21,137.19,8.80994492]
[1765511362008,0.72,137.2,137.19,8.80994492]
[1765511362178,0.72,137.2,137.18,8.80994492]
[1765511365209,8.00865768,137.2,137.18,8.80994492]
[1765511365686,0.72,137.19,137.18,8.80994492]
[1765511367008,0.72,137.19,137.17,7.98]
[1765511367696,0.72,137.19,137.16,8.80994492]
[1765511369714,8.00923098,137.19,137.16,8.80994492]
[1765511370099,0.72,137.18,137.16,8.80994492]
[1765511370493,0.33553601,137.18,137.16,9.19994492]
[1765511371814,7.28862973,137.2,137.16,9.19994492]
[1765511372018,11.75257136,137.2,137.16,9.19994492]
[1765511372520,0.72,137.19,137.16,9.19994492]
[1765511373998,0.72,137.19,137.16,8.80994492]
[1765511376399,0.72,137.19,137.16,9.19994492]
[1765511376612,0.72,137.19,137.16,8.80994492]
[1765511377199,8.00954371,137.19,137.16,8.80994492]
[1765511377400,4.46394163,137.18,137.13,16.78994492]
[1765511377625,0.72,137.17,137.13,17.17994492]
[1765511378123,8.01070879,137.17,137.13,17.17994492]
[1765511378500,0.72,137.16,137.13,17.17994492]
[1765511383223,12.47480653,137.16,137.13,16.78994492]
[1765511383408,8.0108649,137.16,137.13,16.78994492]
[1765511383611,0.7,137.15,137.13,16.78994492]
[1765511384013,0.7,137.15,137.13,17.17994492]
[1765511384419,0.7,137.15,137.13,16.78994492]
[1765511386338,0.7,137.15,137.13,17.17994492]
[1765511386829,0.7,137.15,137.13,16.78994492]
[1765511387033,0.7,137.15,137.13,8.80994492]
[1765511387828,7.99152029,137.15,137.11,7.98]
[1765511388018,12.45546192,137.15,137.12,8.80994492]
[1765511388218,0.7,137.14,137.12,8.80994492]
[1765511388616,0.7,137.14,137.11,8.37]
[1765511388617,5.16394163,137.14,137.11,7.98]
[1765511388816,5.16394163,137.14,137.11,8.80994492]
[1765511389017,0.7,137.13,137.11,8.80994492]
[1765511390720,0.7,137.13,137.1,0.39]
[1765511390721,12.45641932,137.13,137.09,8.18]
[1765511390927,12.45641932,137.13,137.1,8.80994492]
[1765511391134,0.7,137.12,137.1,8.80994492]
[1765511394441,7.99293483,137.12,137.1,8.80994492]
[1765511396542,0.7,137.11,137.1,8.80994492]
[1765511397336,7.99293483,137.12,137.1,8.80994492]
[1765511400049,7.29293483,137.12,137.1,8.80994492]
[1765511400245,0.7,137.11,137.1,8.80994492]
[1765511400450,0.7,137.11,137.09,8.18]
[1765511400451,7.99341404,137.11,137.09,8.18]
[1765511401317,26.20721981,137.16,137.1,8.80994492]
[1765511401518,0.7,137.15,137.12,13.27388655]
[1765511401960,0.7,137.15,137.12,13.66388655]
[1765511402121,0.7,137.15,137.12,8.80994492]
[1765511402319,0.7,137.16,137.13,0.39]
[1765511403249,7.99077238,137.16,137.14,8.80994492]
[1765511403651,0.7,137.15,137.14,8.80994492]
[1765511406035,0.7,137.15,137.12,10.54127325]
[1765511406648,0.7,137.15,137.13,8.80994492]
[1765511407062,0.46,137.15,137.13,8.80994492]
[1765511407362,0.46,137.15,137.13,9.43994492]
[1765511408061,7.75132792,137.15,137.13,8.80994492]
[1765511411264,0.7,137.14,137.12,8.80994492]
[1765511412364,7.99189365,137.14,137.12,8.80994492]
[1765511413252,7.29135863,137.15,137.12,9.43994492]
[1765511413455,7.94135863,137.15,137.12,12.29845572]
[1765511413680,7.94135863,137.15,137.12,9.43994492]
[1765511414594,7.94075532,137.16,137.13,0.63]
[1765511414778,7.94075532,137.16,137.12,8.80994492]
[1765511414972,0.65,137.15,137.12,9.43994492]
[1765511415574,7.94159186,137.15,137.12,9.43994492]
[1765511415884,0.67,137.14,137.12,9.43994492]
[1765511416087,0.67,137.14,137.11,7.98]
[1765511416682,0.67,137.14,137.11,8.61]
[1765511417310,7.9621587,137.14,137.11,8.61]
[1765511418298,7.9621587,137.14,137.11,7.98]
[1765511418477,0.67,137.13,137.11,7.98]
[1765511418795,7.96140877,137.15,137.12,0.63]
[1765511418992,7.96093053,137.16,137.13,8.80994492]
[1765511419494,7.96093053,137.16,137.13,9.43994492]
[1765511419705,7.96093053,137.16,137.13,8.80994492]
[1765511419706,0.67,137.15,137.13,8.80994492]
[1765511419999,7.96093053,137.16,137.13,9.43994492]
[1765511422019,20.33743133,137.17,137.14,0.63]
[1765511422184,0.67,137.16,137.13,19.59077559]
[1765511422386,0.67,137.16,137.13,9.43994492]
[1765511423210,3.5285108,137.16,137.13,8.80994492]
[1765511423405,2.8585108,137.15,137.12,8.80994492]
[1765511423711,3.5285108,137.15,137.12,8.80994492]
[1765511423889,0.67,137.14,137.12,8.80994492]
[1765511426608,7.96202765,137.14,137.12,8.80994492]
[1765511435636,7.29128691,137.15,137.12,8.80994492]
[1765511435840,0.67,137.13,137.11,7.98]
[1765511436541,0.67,137.13,137.1,9.43994492]
[1765511438049,7.96237841,137.13,137.1,9.43994492]
[1765511442764,7.29237841,137.13,137.1,9.43994492]
[1765511442930,0.67,137.12,137.1,9.43994492]
[1765511444377,0.67,137.12,137.1,8.80994492]
[1765511444566,0.67,137.12,137.1,9.43994492]
[1765511444873,7.98237841,137.13,137.1,9.43994492]
[1765511448972,7.29237841,137.13,137.1,9.43994492]
[1765511449159,0.69,137.12,137.1,9.43994492]
[1765511449980,0.69,137.12,137.1,8.80994492]
[1765511450279,0.69,137.12,137.1,9.43994492]
[1765511450444,7.98295832,137.12,137.09,8.18]
[1765511450655,10.84146912,137.12,137.09,8.18]
[1765511450973,0.69,137.11,137.09,9.00994492]
[1765511453078,7.9835603,137.11,137.09,9.00994492]
[1765511455183,7.2935603,137.11,137.09,9.00994492]
[1765511455363,7.9835603,137.11,137.09,9.00994492]
[1765511455562,7.2935603,137.11,137.09,9.00994492]
[1765511455762,7.9835603,137.11,137.09,9.00994492]
[1765511456081,7.2935603,137.11,137.09,9.00994492]
[1765511456276,0.69,137.1,137.09,9.00994492]
[1765511456479,7.9835603,137.11,137.09,9.00994492]
[1765511457182,0.69,137.1,137.09,9.00994492]
[1765511457565,7.98394602,137.1,137.09,0.2]
[1765511458185,10.84245682,137.1,137.09,0.2]
[1765511460106,7.98394602,137.1,137.09,0.2]
[1765511468089,7.98300327,137.12,137.09,0.83]
[1765511468287,7.98300327,137.12,137.09,9.00994492]
[1765511468516,7.29300327,137.12,137.09,9.63994492]
[1765511468710,0.69,137.11,137.09,9.63994492]
[1765511469090,7.98300327,137.12,137.09,9.63994492]
[1765511474123,4.47095877,137.16,137.11,13.28090369]
[1765511474429,0.69,137.15,137.11,21.26090369]
[1765511474634,0.69,137.15,137.12,0.63]
[1765511475146,7.98131587,137.15,137.12,0.63]
[1765511475652,7.29081538,137.16,137.13,8.80994492]
[1765511475820,7.95081538,137.16,137.13,8.80994492]
[1765511476020,7.95081538,137.16,137.13,9.43994492]
[1765511476248,7.95081538,137.16,137.14,0.63]
[1765511476831,7.95081538,137.16,137.13,13.91090369]
[1765511478628,7.95081538,137.16,137.13,13.28090369]
[1765511478830,7.95081538,137.16,137.14,0.63]
[1765511480150,7.95081538,137.16,137.13,13.91090369]
[1765511480854,0.66,137.15,137.13,13.91090369]
[1765511481162,0.66,137.15,137.13,8.80994492]
[1765511486172,0.66,137.15,137.13,9.43994492]
[1765511499475,0.66,137.15,137.13,8.80994492]
[1765511505890,7.29094079,137.16,137.13,8.80994492]
[1765511506095,7.95094079,137.16,137.13,9.43994492]
[1765511506294,7.95094079,137.16,137.14,0.63]
[1765511506795,7.45094079,137.16,137.14,0.63]
[1765511507507,7.29032499,137.17,137.14,5.10095877]
[1765511507700,7.95032499,137.17,137.14,5.10095877]
[1765511507896,7.95032499,137.17,137.14,4.47095877]
[1765511508198,7.95032499,137.17,137.15,0.63]
[1765511508492,7.29032499,137.17,137.15,0.63]
[1765511508691,0.66,137.2,137.16,13.28090369]
[1765511508915,0.66,137.2,137.18,8.80994492]
[1765511510480,7.94852606,137.21,137.18,9.43994492]
[1765511510798,0.66,137.2,137.18,9.43994492]
[1765511511210,0.66,137.2,137.18,8.80994492]
[1765511512915,0.66,137.2,137.18,9.43994492]
[1765511513120,0.66,137.2,137.18,8.80994492]
[1765511514589,0.66,137.2,137.18,9.43994492]
[1765511514913,7.28852606,137.21,137.18,13.91090369]
[1765511514914,7.94852606,137.21,137.18,13.91090369]
[1765511515817,0.66,137.2,137.18,13.91090369]
[1765511516814,13.7070912,137.22,137.19,0.63]
[1765511517020,0.66,137.24,137.22,8.80994492]
[1765511517185,0.66,137.25,137.22,13.28090369]
[1765511517387,7.94598609,137.25,137.22,13.91090369]
[1765511517893,0.66,137.24,137.22,8.80994492]
[1765511518117,0.66,137.24,137.22,13.28090369]
[1765511519014,7.94663018,137.24,137.22,8.80994492]
[1765511519218,7.94663018,137.24,137.21,7.98]
[1765511519444,0.66,137.23,137.21,7.98]
[1765511520125,0.66,137.23,137.21,13.08095877]
[1765511521121,0.66,137.23,137.21,7.98]
[1765511521323,4.47095877,137.22,137.17,8.80994492]
[1765511521524,4.47095877,137.2,137.17,8.80994492]
[1765511521746,4.47095877,137.2,137.16,7.98]
[1765511521747,13.0470912,137.19,137.16,7.98]
[1765511521927,13.7070912,137.19,137.14,13.08095877]
[1765511522131,0.66,137.18,137.15,8.80994492]
[1765511523417,7.94977823,137.18,137.15,8.80994492]
[1765511524032,0.66,137.17,137.14,7.98]
[1765511524539,5.13095877,137.17,137.13,8.80994492]
[1765511525013,7.95083228,137.16,137.13,8.80994492]
[1765511525420,0.66,137.15,137.13,8.80994492]
[1765511530538,7.2902238,137.17,137.13,9.43994492]
[1765511530739,0.66,137.16,137.13,8.80994492]
[1765511531645,7.95094771,137.16,137.12,7.98]
[1765511531846,2.85896604,137.15,137.11,8.80994492]
[1765511532020,3.51896604,137.15,137.11,8.80994492]
[1765511532220,0.66,137.14,137.11,8.80994492]
[1765511533343,7.29169645,137.15,137.11,8.80994492]
[1765511533545,8.00169645,137.15,137.12,0.63]
[1765511534150,0.71,137.14,137.11,9.43994492]
[1765511535875,0.71,137.14,137.11,12.29891096]
[1765511536077,21.08585434,137.16,137.13,8.80994492]
[1765511536078,7.96080764,137.16,137.13,8.80994492]
[1765511536249,0.67,137.17,137.13,11.66891096]
[1765511536448,0.67,137.17,137.14,0.63]
[1765511537261,7.96030661,137.17,137.14,0.63]
[1765511539066,0.67,137.16,137.13,16.73227769]
[1765511539464,0.67,137.16,137.13,9.43994492]
[1765511539654,2.85896604,137.15,137.1,3.48896604]
[1765511539975,2.85896604,137.15,137.11,8.80994492]
[1765511540176,0.67,137.14,137.11,8.80994492]
[1765511540977,0.67,137.14,137.11,9.43994492]
[1765511541385,7.96201387,137.14,137.11,9.43994492]
[1765511545871,7.29148064,137.15,137.11,16.10322782]
[1765511546068,7.29148064,137.15,137.12,0.63]
[1765511546269,7.96148064,137.15,137.12,0.63]
[1765511547678,7.29087402,137.16,137.13,8.80994492]
[1765511547867,7.29087402,137.16,137.14,0.63]
[1765511548478,7.96087402,137.16,137.13,8.80994492]
[1765511548669,7.96087402,137.16,137.13,9.43994492]
[1765511549279,7.96087402,137.16,137.14,0.63]
[1765511550468,7.96087402,137.16,137.13,16.78994492]
[1765511550469,7.96087402,137.16,137.13,17.41994492]
[1765511550889,0.67,137.15,137.13,17.41994492]
[1765511551092,0.67,137.15,137.13,16.78994492]
[1765511551272,0.67,137.15,137.13,17.41994492]
[1765511551789,7.29087402,137.16,137.13,17.41994492]
[1765511551974,7.96087402,137.16,137.13,17.41994492]
[1765511552174,0.67,137.15,137.13,17.41994492]
[1765511554888,7.29087402,137.16,137.13,16.78994492]
[1765511555098,7.29087402,137.16,137.14,0.63]
[1765511555672,7.96087402,137.16,137.13,16.78994492]
[1765511555873,7.96087402,137.16,137.13,17.41994492]
[1765511556082,7.2902238,137.17,137.13,17.41994492]
[1765511556297,0.67,137.15,137.13,17.41994492]
[1765511556696,7.2902238,137.17,137.14,0.63]
[1765511556880,7.9602238,137.17,137.14,0.63]
[1765511557275,0.67,137.16,137.14,0.63]
[1765511557474,7.2902238,137.17,137.14,0.63]
[1765511557793,7.9602238,137.17,137.14,0.63]
[1765511557988,7.9602238,137.17,137.14,3.48896604]
[1765511558391,7.9602238,137.17,137.14,2.85896604]
[1765511558701,7.9602238,137.17,137.15,0.63]
[1765511558999,7.28969802,137.18,137.16,16.78994492]
[1765511559371,7.95969802,137.18,137.16,16.78994492]
[1765511559982,7.28969802,137.18,137.17,0.63]
[1765511560200,7.28969802,137.18,137.16,17.41994492]
[1765511560393,7.95933844,137.19,137.17,0.63]
[1765511560594,7.95933844,137.19,137.16,16.78994492]
[1765511560897,7.95933844,137.19,137.16,17.41994492]
[1765511561605,0.67,137.18,137.16,17.41994492]
[1765511562192,7.95933844,137.19,137.16,17.41994492]
[1765511563294,0.71,137.18,137.16,17.41994492]
[1765511563489,7.28933844,137.19,137.16,17.41994492]
[1765511563694,7.99933844,137.19,137.16,17.41994492]
[1765511563891,7.28933844,137.19,137.16,17.41994492]
[1765511564109,0.71,137.18,137.16,17.41994492]
[1765511564308,7.99933844,137.19,137.16,17.41994492]
[1765511564710,0.71,137.18,137.16,17.41994492]
[1765511565006,0.71,137.18,137.16,16.78994492]
[1765511566211,7.99973938,137.18,137.16,16.78994492]
[1765511568600,25.51066581,137.2,137.16,16.78994492]
[1765511568807,0.71,137.18,137.16,16.78994492]
[1765511569702,3.56896604,137.18,137.16,7.98]
[1765511569888,3.56896604,137.18,137.14,16.78994492]
[1765511570095,0.71,137.17,137.14,16.78994492]
[1765511572320,8.00070046,137.17,137.14,16.78994492]
[1765511573010,0.71,137.16,137.14,16.78994492]
[1765511573516,8.00070046,137.17,137.14,17.41994492]
[1765511573715,8.00070046,137.17,137.14,20.27891096]
[1765511573919,8.00070046,137.17,137.15,0.63]
[1765511574100,7.29070046,137.17,137.15,0.63]
[1765511574508,25.51302845,137.19,137.15,0.63]
[1765511574821,0.71,137.18,137.15,0.63]
[1765511575312,0.71,137.18,137.14,26.94072634]
[1765511575504,0.71,137.18,137.14,27.57072634]
[1765511575922,0.71,137.18,137.16,8.80994492]
[1765511575923,7.99998866,137.18,137.16,8.80994492]
[1765511576216,7.28770771,137.22,137.17,10.83896604]
[1765511576398,0.71,137.23,137.21,8.80994492]
[1765511577307,7.99722035,137.23,137.21,8.80994492]
[1765511580197,21.07428359,137.25,137.21,12.29891096]
[1765511580198,7.996521,137.24,137.21,12.29891096]
[1765511580410,7.99617279,137.25,137.23,8.80994492]
[1765511580603,13.0470912,137.26,137.23,8.80994492]
[1765511580798,21.0426589,137.26,137.23,9.43994492]
[1765511581224,13.0470912,137.26,137.24,0.63]
[1765511581805,7.28444511,137.28,137.25,11.66891096]
[1765511582200,8.0939127,137.29,137.27,8.80994492]
[1765511582426,0.1,137.29,137.27,8.80994492]
[1765511582647,0.1,137.29,137.27,9.43994492]
[1765511583432,0.1,137.29,137.28,3.48896604]
[1765511584309,0.1,137.29,137.28,12.5832341]
[1765511584528,0.1,137.29,137.28,8.80994492]
[1765511584908,0.1,137.29,137.28,9.43994492]
[1765511585636,0.1,137.29,137.28,12.5832341]
[1765511585807,0.1,137.29,137.28,9.72426806]
[1765511586008,0.1,137.29,137.28,12.5832341]
[1765511586207,0.1,137.3,137.29,9.09426806]
[1765511586419,7.99000105,137.37,137.29,27.8470858]
[1765511586617,7.99000105,137.37,137.35,2.85896604]
[1765511586910,0.71,137.37,137.36,8.80994492]
[1765511587111,0.71,137.41,137.36,12.29891096]
[1765511587412,0.1,137.43,137.39,11.66891096]
[1765511587413,7.27696114,137.42,137.39,11.66891096]
[1765511587620,7.27696114,137.42,137.4,2.85896604]
[1765511587828,0.71,137.42,137.41,8.80994492]
[1765511588211,0.1,137.43,137.42,8.80994492]
[1765511588732,0.81,137.43,137.4,16.78994492]
[1765511589934,8.08668531,137.43,137.4,16.78994492]
[1765511590116,8.08668531,137.43,137.37,7.27908816]
[1765511590117,2.85896604,137.41,137.38,8.80994492]
[1765511590310,0.1,137.43,137.4,8.80994492]
[1765511590510,0.81,137.43,137.41,0.28432314]
[1765511590829,2.85896604,137.42,137.37,0.63]
[1765511591032,2.85896604,137.41,137.38,8.80994492]
[1765511591233,16.61605724,137.4,137.37,8.80994492]
[1765511591432,2.85896604,137.38,137.33,7.91121361]
[1765511591623,0.71,137.37,137.33,10.77017965]
[1765511591822,0.71,137.37,137.34,7.98]
[1765511592132,4.45328111,137.36,137.32,15.2622082]
[1765511592317,0.71,137.35,137.32,7.98]
[1765511593136,0.71,137.35,137.33,8.80994492]
[1765511595332,0.67,137.37,137.35,8.80994492]
[1765511595522,0.67,137.38,137.35,8.80994492]
[1765511596117,0.67,137.38,137.35,16.78994492]
[1765511601540,0.67,137.38,137.35,17.41994492]
[1765511602142,15.92814539,137.4,137.37,8.80994492]
[1765511602448,7.27814539,137.4,137.37,8.80994492]
[1765511602622,7.94751677,137.41,137.37,9.43994492]
[1765511603023,17.50037231,137.42,137.38,13.34760425]
[1765511603024,13.0470912,137.42,137.38,13.34760425]
[1765511603242,4.45328111,137.39,137.35,8.80994492]
[1765511603449,5.12328111,137.41,137.35,8.80994492]
[1765511603630,4.45328111,137.38,137.35,8.80994492]
[1765511603831,4.45328111,137.38,137.34,9.09426806]
[1765511604026,0.67,137.37,137.34,9.09426806]
[1765511604226,5.12328111,137.37,137.34,8.80994492]
[1765511604651,0.67,137.36,137.34,8.80994492]
[1765511604822,0.67,137.36,137.33,8.61]
[1765511605027,4.45328111,137.35,137.31,8.80994492]
[1765511605335,4.45328111,137.34,137.31,8.80994492]
[1765511605730,5.12328111,137.33,137.3,7.98]
[1765511605929,0.67,137.33,137.3,7.98]
[1765511606140,7.28132908,137.34,137.31,8.80994492]
[1765511606533,7.95132908,137.34,137.31,8.80994492]
[1765511606727,0.67,137.33,137.3,7.98]
[1765511606932,5.12328111,137.33,137.3,7.98]
[1765511607151,5.12328111,137.33,137.29,16.09369002]
[1765511607350,0.67,137.32,137.29,16.09369002]
[1765511608445,39.22829221,137.36,137.31,8.80994492]
[1765511608446,12.40464465,137.34,137.31,8.80994492]
[1765511608955,0.67,137.33,137.31,8.80994492]
[1765511609160,0.67,137.33,137.29,7.2837451]
[1765511609342,0.67,137.33,137.29,16.72369002]
[1765511610463,11.73464465,137.34,137.31,8.80994492]
[1765511610651,11.73410292,137.35,137.31,8.80994492]
[1765511610964,11.73410292,137.35,137.31,16.78994492]
[1765511611267,0.67,137.34,137.31,16.78994492]
[1765511613169,4.45328111,137.35,137.31,24.7026368]
[1765511613352,5.12328111,137.35,137.31,24.7026368]
[1765511614571,0.67,137.34,137.31,17.41994492]
[1765511617157,0.67,137.34,137.31,24.70273125]
[1765511617678,12.4042665,137.35,137.31,24.70273125]
[1765511618867,0.67,137.34,137.31,24.70273125]
[1765511619479,5.12328111,137.34,137.31,24.70273125]
[1765511619780,0.67,137.34,137.31,24.70273125]
[1765511622676,11.7342665,137.35,137.32,0.63]
[1765511623173,12.3942665,137.35,137.32,0.63]
[1765511623479,5.11328111,137.37,137.33,8.80994492]
[1765511623678,0.66,137.36,137.33,8.80994492]
[1765511624099,5.11328111,137.36,137.33,8.80994492]
[1765511625596,5.11431717,137.36,137.33,8.80994492]
[1765511626987,12.3945374,137.36,137.33,8.80994492]
[1765511628196,0.66,137.35,137.33,8.80994492]
[1765511630101,7.28014462,137.36,137.33,8.80994492]
[1765511630401,0.66,137.35,137.33,8.80994492]
[1765511632479,7.94093161,137.35,137.31,7.98]
[1765511632703,12.39524878,137.35,137.32,8.80994492]
[1765511632884,0.66,137.34,137.32,8.80994492]
[1765511633895,5.11431717,137.34,137.32,8.80994492]
[1765511635412,12.39551846,137.34,137.32,8.80994492]
[1765511636707,7.94120129,137.34,137.32,8.80994492]
[1765511639812,0.66,137.33,137.31,7.98]
[1765511640011,4.45431717,137.32,137.28,8.80994492]
[1765511640212,4.45431717,137.32,137.28,9.43994492]
[1765511640518,0.66,137.31,137.28,9.43994492]
[1765511640812,0.66,137.31,137.28,8.80994492]
[1765511641004,4.45431717,137.29,137.27,7.98]
[1765511641205,4.45431717,137.29,137.27,8.80994492]
[1765511641509,5.11431717,137.29,137.27,8.80994492]
[1765511642888,0.66,137.29,137.27,8.80994492]
[1765511645010,7.94394538,137.29,137.27,8.80994492]
[1765511645401,0.66,137.28,137.27,8.80994492]
[1765511647019,7.94394538,137.29,137.27,8.80994492]
[1765511647818,0.66,137.29,137.27,8.80994492]
[1765511654231,10.79747933,137.29,137.25,7.98]
[1765511654430,10.79747933,137.29,137.23,8.80994492]
[1765511654431,2.85341127,137.27,137.23,8.80994492]
[1765511654732,2.85341127,137.26,137.23,8.80994492]
[1765511654902,2.85341127,137.27,137.23,8.80994492]
[1765511655108,3.55341127,137.27,137.23,8.80994492]
[1765511655426,0.7,137.26,137.23,9.43994492]
[1765511658430,0.7,137.26,137.23,8.80994492]
[1765511659518,0.7,137.26,137.23,9.43994492]
[1765511660727,0.7,137.26,137.23,8.80994492]
[1765511661036,2.85341127,137.25,137.21,0.63]
[1765511661215,2.85341127,137.25,137.22,8.80994492]
[1765511661414,0.72,137.24,137.22,8.80994492]
[1765511662119,0.72,137.24,137.21,8.80994492]
[1765511662320,0.72,137.24,137.21,9.43994492]
[1765511662735,0.72,137.24,137.21,8.80994492]
[1765511663327,0.72,137.24,137.21,9.43994492]
[1765511665641,7.2864509,137.25,137.22,0.63]
[1765511665845,8.0064509,137.25,137.22,0.63]
[1765511666025,7.2864509,137.25,137.21,16.09774164]
[1765511666230,0.72,137.24,137.21,16.72774164]
[1765511667241,10.14081405,137.26,137.21,16.09774164]